Cogmind - Beta 14 @@@ ROGUE MODE // 2024.08.16 @ 14:36:21 Player: Andru7428 Result: Destroyed by 83-ZQX(R) with Subdweller Machine Gun Performance ------------- Evolutions (0) 0 Regions Visited (2) 400 Robots Destroyed (34) 170 Value Destroyed (850) 850 Prototype IDs (4) 80 Alien Tech Used (0) 0 Bonus (0) 0 TOTAL SCORE: 1500 Bonus ------- None Cogmind --------- Core Integrity 0/250 Matter 231/300 Energy 219/265 System Corruption 0% Temperature Cool (0) Movement Treading (160) Location -10/Subcaves Parts ------- > --- POWER (1) -------- Reinforced Ion Engine > --- PROPULSION (2) --- Spiked Treads Spiked Treads > --- UTILITY (2) ------ Large Storage Unit Light Armor Plating > --- WEAPON (2) ------- Heavy Assault Rifle Heavy Assault Rifle > --- INVENTORY (15) --- Light Treads Spiked Treads Large Matter Pod (150) Scrap Shield Assault Rifle Heavy Hammer Heavy Hammer Heavy Hammer Heavy Hammer Scrap Shield Fragment (49) Scrap Shield Fragment (49) Scrap Shield Fragment (48) Peak State ------------ > --- POWER ------------ Improved Ion Engine > --- PROPULSION ------- Spiked Treads Spiked Treads > --- UTILITY ---------- Large Storage Unit Light Armor Plating > --- WEAPON ----------- Heavy Assault Rifle Heavy Assault Rifle > --- INVENTORY -------- Reinforced Ion Engine Spiked Treads Compact Wheel Large Matter Pod Light Armor Plating Scrap Shield Assault Rifle Heavy Assault Rifle Heavy Hammer Heavy Hammer Heavy Hammer Heavy Hammer Scrap Shield Fragment Scrap Shield Fragment [Rating: 14] Favorites ----------- Power Improved Ion Engine Engine Improved Ion Engine Power Core Light Nuclear Core Propulsion Light Treads Treads Light Treads Utility Large Storage Unit Device Seismic Detector Storage Large Storage Unit Protection Light Armor Plating Weapon Heavy Assault Rifle Energy Gun EM Pulse Gun Ballistic Gun Heavy Assault Rifle Impact Weapon Heavy Hammer Build | -11 -10 -10 ------- Run | Yrd Mat Sub Slots Evolved . | . . . Power . | . . . Propulsion . | . . . Utility . | . . . Weapon . | . . . Parts Attached 41 | 9 9 23 Power 6 | 1 3 2 Engine 5 | 1 2 2 Core 1 | . 1 . Reactor . | . . . Propulsion 10 | 2 2 6 Treads 10 | 2 2 6 Leg . | . . . Wheel . | . . . Hover . | . . . Flight . | . . . Utility 8 | 3 2 3 Device 2 | 2 . . Storage 2 | 1 1 . Processor . | . . . Hackware . | . . . Protection 4 | . 1 3 Artifact . | . . . Weapon 17 | 3 2 12 Energy Gun 1 | 1 . . Energy Cannon . | . . . Ballistic Gun 11 | 2 2 7 Ballistic Cannon . | . . . Launcher . | . . . Special Weapon . | . . . Impact Weapon 5 | . . 5 Slashing Weapon . | . . . Piercing Weapon . | . . . Special Melee Weapon . | . . . Unidentified Prototypes . | . . . Parts Lost 6 | . 1 5 Power 1 | . . 1 Propulsion 1 | . . 1 Utility 2 | . 1 1 Weapon 2 | . . 2 Highest Loss Streak 2 | . 1 2 To Critical Strikes . | . . . Average Slot Usage (%) 98 | . 96 99 Engine 13 | . 13 13 Treads 28 | . 28 28 Device 1 | . 4 . Storage 14 | . 14 14 Protection 11 | . 6 14 Ballistic Gun 23 | . 28 21 Impact Weapon 4 | . . 6 Peak Build Rating 14 | 7 12 14 Average Rating 11 | 5 10 13 On Entrance 6 | . 7 12 Naked Turns . | . . . Heaviest Build 39 | 15 39 39 Greatest Support 40 | 40 40 40 Greatest Overweight (x) . | . . . Average Overweight (x) . | . . . Largest Inventory Capacity 15 | 8 15 15 Average Capacity 14 | 7 14 15 Most Carried 15 | 7 15 15 Average Carried 13 | 5 13 14 Final Capacity 15 | 8 15 15 Final Carried 15 | 6 15 13 Class Distribution -------------------- 100% | Mutant Dominant Class ---------------- Mutant | -10/Materials Mutant | -10/Subcaves Resources | -11 -10 -10 ----------- Run | Yrd Mat Sub Matter Collected 1217 | 257 565 395 Remotely . | . . . Salvage Created 1096 | 54 579 463 Parts 84 | 12 46 26 Haulers Intercepted 2 | . 2 . Recyclers Shooed 1 | 1 . . Parts Field Recycled . | . . . Retrieved Matter . | . . . Parts Self-Destructed 9 | . . 9 Prevented . | . . . Kills | -11 -10 -10 ------- Run | Yrd Mat Sub Combat Hostiles Destroyed 27 | . 14 13 Melee 1 | . . 1 Guns 25 | . 14 11 Classes Destroyed 7 | 1 4 2 Tunneler 3 | 3 . . Hauler 2 | . 2 . Watcher 2 | . 2 . Swarmer 9 | . 6 3 Grunt 8 | . 8 . Sentry 1 | . . 1 Subdweller 9 | . . 9 Best Kill Streak 3 | 2 3 3 Combat Bots Only 3 | . 3 3 Max Kills in Single Turn 1 | 1 1 1 Gunslinging . | . . . Exploded . | . . . Melee 1 | . . 1 Uniques/NPCs Destroyed . | . . . Combat | -11 -10 -10 -------- Run | Yrd Mat Sub Hostile Shots Fired 155 | . 68 87 Missed 35 | . 14 21 Damage Taken 1964 | 25 535 1404 Core 259 | . 124 135 Absorbed by Shields . | . . . Core Remaining (%) 100 | 100 . . Volleys Fired 98 | 5 52 41 Largest 2 | 2 2 2 Hottest 60 | 60 46 46 Shots Fired 195 | 10 104 81 Gun 195 | 10 104 81 Cannon . | . . . Launcher . | . . . Special . | . . . Kinetic 190 | 5 104 81 Thermal . | . . . Explosive . | . . . Electromagnetic 5 | 5 . . Robot Hit Streak 22 | 3 12 22 Robot Miss Streak 4 | 1 4 1 Penetration Max . | . . . Secondary Targets 1 | . . 1 Max Gunslinging Chain 1 | . . 1 Shots Hit Robots 158 | 7 70 81 Core Hits 52 | 3 30 19 Critical Kills 2 | . 1 1 Critical Parts Destroyed 1 | . . 1 Critical Strikes 4 | . 1 3 Destroy 1 | . 1 . Smash 3 | . . 3 Melee Attacks 45 | . . 45 Impact 45 | . . 45 Slashing . | . . . Piercing . | . . . Sneak Attacks . | . . . Combat Hostiles . | . . . Follow-up Attacks 2 | . . 2 Damage Inflicted 2742 | 177 1066 1499 Guns 2202 | 91 1063 1048 Cannons . | . . . Explosions 86 | 86 . . Melee 451 | . . 451 Ramming 3 | . 3 . Kinetic 2147 | 36 1063 1048 Thermal 86 | 86 . . Explosive . | . . . Electromagnetic 55 | 55 . . Impact 451 | . . 451 Slashing . | . . . Piercing . | . . . Highest Corruption . | . . . Average Corruption . | . . . Corruption Purged . | . . . Corruption Blocked . | . . . Overload Shots . | . . . Overflow Damage 55 | . . 55 Projectiles . | . . . Explosions . | . . . Melee 55 | . . 55 Knockbacks 1 | . . 1 Impact 1 | . . 1 Kinetic . | . . . Secondary . | . . . Self-Inflicted Damage 25 | 25 . . Shots 1 | 1 . . Rammed 2 | . 2 . Targets Rammed 2 | . 2 . Kicked . | . . . Crushed . | . . . Highest Temperature 18 | 12 18 . Average Temperature 4 | 12 4 . Received Heat Transfer 402 | . 186 216 Siege Activations . | . . . Robots Corrupted 1 | . . 1 Combat Hostiles 1 | . . 1 Parts Fried . | . . . Impact Corruptions 3 | . . 3 Robots Melted . | . . . Combat Hostiles . | . . . Parts Melted . | . . . Heat Transferred 100 | 100 . . Parts Sabotaged . | . . . Parts Stolen . | . . . Parts Stripped . | . . . Power Chain Reactions 2 | 2 . . Alert | -11 -10 -10 ------- Run | Yrd Mat Sub Peak Influence 255 | 15 255 . Initial 9 | . 9 . Average 116 | 5 128 . Maximum Alert Level 1 | . 1 . Low Security (%) 81 | 100 79 . Level 1 18 | . 20 . Level 2 . | . . . Level 3 . | . . . Level 4 . | . . . Level 5 . | . . . High Security . | . . . Max Security . | . . . Squads Dispatched 2 | . 2 . Investigation 1 | . 1 . Extermination . | . . . Reinforcement 1 | . 1 . Assault . | . . . Garrison . | . . . Intercept . | . . . Searches Triggered . | . . . Construction Impeded . | . . . Haulers Reinforced . | . . . Active Scanning Responses . | . . . Cargo Convoy Interrupts . | . . . Stealth | -11 -10 -10 --------- Run | Yrd Mat Sub Distress Signals . | . . . Communications Jammed . | . . . Distress Signals . | . . . Times Spotted 36 | . 22 14 Peak Tracking Total 3 | . 3 3 Tactical Retreats 4 | . 4 . Traps | -11 -10 -10 ------- Run | Yrd Mat Sub Traps Triggered 4 | . 1 3 Indirectly . | . . . Trap Hack Attempts . | . . . Triggered . | . . . Disarmed . | . . . Reprogrammed . | . . . Reused 1 | . . 1 Traps Extracted . | . . . Installed 1 | . . 1 Triggered . | . . . Most Traps Carried 1 | . . 1 Machines | -11 -10 -10 ---------- Run | Yrd Mat Sub Machines Disabled . | . . . Max in Single Turn . | . . . Machines Repaired . | . . . Machines Dismantled . | . . . Machines Sabotaged . | . . . Overloaded Fab Kills . | . . . Hacking | -11 -10 -10 --------- Run | Yrd Mat Sub Machines Accessed 6 | . 5 1 Terminals 5 | . 5 . Fabricators . | . . . Repair Stations . | . . . Recycling Units . | . . . Scanalyzers . | . . . Garrison Access . | . . . Total Hacks 20 | . 19 1 Successful 11 | . 10 1 Failed 8 | . 8 . Catastrophic 1 | . 1 . Database Lockouts 1 | . 1 . Manual 14 | . 14 . Terminals 19 | . 19 . Fabricators . | . . . Repair Stations . | . . . Recycling Units . | . . . Scanalyzers . | . . . Garrison Access . | . . . Terminal Hacks 8 | . 7 1 Robot Analysis 2 | . 2 . Prototype ID Bank 2 | . 2 . Open Door 1 | . . 1 Locate Traps 2 | . 2 . Zone Layout 1 | . 1 . Fabricator Hacks . | . . . Repair Station Hacks . | . . . Recycling Unit Hacks . | . . . Scanalyzer . | . . . Garrison Access Hacks . | . . . Unauthorized Hacks 3 | . 3 . Terminals 3 | . 3 . Botnet 2 | . 2 . Operators 1 | . 1 . Fabricators . | . . . Repair Stations . | . . . Recycling Units . | . . . Scanalyzers . | . . . Garrison Access . | . . . Data Cores Recovered . | . . . Used . | . . . Hacking Detections 5 | . 5 . Full Trace Events . | . . . Feedback Events . | . . . Feedback Blocked . | . . . Robot Schematics Acquired . | . . . Robots Built . | . . . Authchips . | . . . Time . | . . . Total Robot Build Rating . | . . . Part Schematics Acquired . | . . . Parts Built . | . . . Authchips . | . . . Time . | . . . Total Part Build Rating . | . . . Parts Repaired . | . . . Time . | . . . Parts Recycled . | . . . Recycled Matter . | . . . Retrieved Matter . | . . . Retrieved Components . | . . . Parts Scanalyzed . | . . . Part Schematics Acquired . | . . . Parts Damaged . | . . . Bothacking | -11 -10 -10 ------------ Run | Yrd Mat Sub Used RIF Installer . | . . . Robots Hacked . | . . . Non-combat . | . . . Combat . | . . . Robot Hacks Applied . | . . . Relay Couplers Released . | . . . Fabnet Peak Effective % . | . . . Robots Rewired . | . . . Allies Hacked . | . . . Hacks Repelled . | . . . Allies | -11 -10 -10 -------- Run | Yrd Mat Sub Total Allies . | . . . Largest Group . | . . . Highest-Rated Group . | . . . Highest-Rated Ally . | . . . Total Orders . | . . . Ally Attacks . | . . . Total Damage . | . . . Kills . | . . . Allies Corrupted . | . . . Allies Melted . | . . . Intel | -11 -10 -10 ------- Run | Yrd Mat Sub Robot Analysis Total 2 | . 2 . Derelict Logs Recovered . | . . . Drone Launches . | . . . Drone Recoveries . | . . . Exploration | -11 -10 -10 ------------- Run | Yrd Mat Sub Turns Passed 3663 | 125 1206 2332 Spaces Moved 1902 | 59 595 1248 Core 5 | 5 . . Treads 1897 | 54 595 1248 Legs . | . . . Wheels . | . . . Hover . | . . . Flight . | . . . Fastest Speed 50 | 50 160 160 Average Speed 159 | 150 160 160 Slowest Speed 160 | 160 160 160 Overloaded Moves . | . . . Propulsion Burnouts . | . . . Robots Hopped . | . . . Cave-ins Triggered . | . . . Exploration Rate (%) 51 | 3 84 67 Regions Visited 2 Branch Regions 1 Pre-discovered Areas 1 | . . 1 Known Exits Taken . | . . . Unknown Exits Taken 2 | 1 1 . Scrap Searched 5 | . . 5 Spaces Dug 3 | . . 3 Terrain Destroyed 5 | 2 . 3 Melee 3 | . . 3 Projectile . | . . . AOE 2 | 2 . . Terrain Rammed . | . . . Walls Destroyed . | . . . Machines Disabled . | . . . Actions | -11 -10 -10 --------- Run | Yrd Mat Sub Total 2260 | 82 753 1425 Wait 107 | 1 61 45 Move 1900 | 58 594 1248 Hop . | . . . Pick Up 37 | 8 19 10 Fast Attach 8 | 5 2 1 Attach 7 | 2 . 5 Detach 1 | . . 1 Swap 26 | 2 7 17 Drop 30 | 1 16 13 Fire 98 | 5 52 41 Melee 43 | . . 43 Ram . | . . . Kick . | . . . Crush 2 | . 2 . Escape Stasis . | . . . Rewire . | . . . Trap 1 | . . 1 Miscellaneous . | . . . Route ------- -11/Scrapyard -10/Materials (discovered 5 exits: [*Mat x2] / [*Min x2] / *Sub) -10/Subcaves (discovered 1 exit: [*Mat]) History --------- Turn | Location | Event 34 | -11/Scrapyard | Discovered new exit (range 15) 126 | -11/Scrapyard | Entered Materials 307 | -10/Materials | Central database locked down 307 | -10/Materials | Discovered new exit (range 16) 320 | -10/Materials | Build established: Mutant 400 | -10/Materials | Discovered new exit (range 4) 531 | -10/Materials | Discovered new exit (range 9) 987 | -10/Materials | Discovered new exit (range 16) 1326 | -10/Materials | Discovered new exit (range 5) 1332 | -10/Materials | Entered Subcaves 1388 | -10/Subcaves | Core integrity fell below 50% 1539 | -10/Subcaves | Learned location of Zion (-6) 1539 | -10/Subcaves | Met a Zionite searching for "candidates" 1860 | -10/Subcaves | Shifting Twisted Machinery released Piercing Trap 1948 | -10/Subcaves | Shifting Twisted Machinery released Sub. Laser 1972 | -10/Subcaves | Ambushed by Subdwellers from Twisted Machinery 2193 | -10/Subcaves | Discovered new exit (range 9) 2202 | -10/Subcaves | Disturbed a concealed Subdweller 2504 | -10/Subcaves | Shifting Twisted Machinery released Spk. Treads 2788 | -10/Subcaves | A swath of the cavern ceiling suddenly collapsed 2924 | -10/Subcaves | A swath of the cavern ceiling suddenly collapsed 3602 | -10/Subcaves | Core integrity fell below 20% 3640 | -10/Subcaves | Ambushed by Subdweller buried in earth 3664 | -10/Subcaves | Destroyed by 83-ZQX(R) with Subdweller Machine Gun Last Messages --------------- 03030_ Critical hit (Impale). 03033_ Triggered Piercing Trap. 03033_ Spikes shoot up from the floor. 03033_ Critical hit (Impale). 03125_ Dropped Lgt. Armor Plating. 03188_ Acquired 22 matter. 03193_ Acquired 8 matter. 03237_ Acquired Scrap Shield Fragment. 03480_ Connecting with UFD SUBCON Station... 03480_ Current location identified: Subcaves >>Open Door Sealed Heavy Doors opened. 03569_ AL-X8B(R) destroyed. 03584_ 4U-9J7(R) affixes Scrap Shield Fragment to Scrap Shield. 03602_ 4U-9J7(R) destroyed. 03608_ Acquired 42 matter. 03609_ Acquired 40 matter. 03641_ 83-ZQX(R): "ARGHSUB!" 03648_ Imp. Ion Engine destroyed. 03660_ Hvy. Assault Rifle destroyed. Map ----- +----------------------------------------------------+ | "" ## ## #???# ##???????????? | | "" "#"X### ### ####???# #????????????? | | ######### ### ##????? ????????????? | | ????????##### ##?# ##???? ????????????? | | ????????????###?## # #???# ????????????? | | ????????????????# ### #?? ????????????? | | ????????????????## ##?### #?? ????????????? | | ????????????????# ##????? ##? ????????????? | | ????????????????# #????? #? ???????????? | | ????????????????# #????? ##? ???????????? | | ????????????????# ##????? #?? ???????????? | | ????????????????## ##????? ?? ???????????? | | ????????????????# #????? ??? ???????????? | | ????????????????# ##?????? ?? ???????????? | | ????????????????# #??????##???????????????????? | | ????????????????## ##???????????????????????????? | | ?????????????????# ##???????????????????????????? | | ????????????????## #### #?????????????????????? | | ????????????????# #??????????????????? | | ????????????????## ### ### #??????????????????? | | ????????????##### #####?????????????????????????? | | ??????# "" ## # #?????????????????????????? | | ??????" #####??????????????????????? | | ??????# &### ! ## ##?????????????????????? | | ??????#" ????### #% ! #?????????????????????? | | ??????# "????????# *## ##@R#?????????????????????? | | ??????#??????? ###### #?????????????????????? | | ????????????# #?????##?????????????????????? | | ?????????? #????????????????????????????? | | ??????? ##????????????????????????????? | | ?????? ##?????????????????????????????? | | ?????? ## ???????????????????????????????? | | ??????# #??### #???????????????????????????????? | | ??????? ??????###????????????????????????????????? | | ?????????????????????????????????????????????????? | | ?????????????????????????????????????????????????? | | ?????????????????????????????????????????????????? | | ?????????????????????????????????????????????????? | | ?????????????????????????????????????????????????? | | ?????????????????????????????????????????????????? | | ?????????????????????????????????????????????????? | | ?????????????????????????????????????????????????? | | ?????????????????????????????????????????????????? | | ?????????????????????????????????????????????????? | | ?????????????????????????????????????????????????? | | ?????????????????????????????????????????????????? | | ?????????????????????????????????????????????????? | | ?????????????????????????????????????????????????? | | ?????????????????????????????????????????????????? | | ?????????????????????????????????????????????????? | +----------------------------------------------------+ Best States ------------- Heat Dissipation 25 Energy Generation 14 Energy Capacity 265 Matter Stores 300 Matter Capacity 300 Sight Range 16 Terrain Scan Density 10 Armor Coverage 150 Evasion (%) 40 Recoil Reduction 2 Item Schematics ----------------- None Robot Schematics ------------------ None Fabricated ------------ Nothing Alien Tech Used ----------------- None Achievements -------------- None Challenges ------------ None Game ------ Seed HardcellAccelerationTelecube Manual? 0 Play Time 00:28:25 Cumulative 229.0 hours Start 2024.08.16 @ 13:43:46 End 2024.08.16 @ 14:36:21 Sessions 5 Manual Loads 0 Difficulty Rogue Special Mode None Game No. 168 Rogue 168 Adventurer 0 Explorer 0 Win Type - Total 3 Types 3/0/0/0/0/0/0/0/0 Lore% 58 Gallery% 73 Achievement% 62 Wizard Run 0 Options --------- Layout 0 ASCII 0 Keyboard 1 Movement Numpad Keybinds 0 Fullscreen 1 Font 18/SmallcapsGlow Map View 76x50 Zoom Use 0% Tactical HUD 1 Map Filters NONE Filters NONE Steam 1 RUN: b47ab20d-b146-41c2-8162-345eed79e443